[Event "31st Kavala Open-A 2022"]
[Site "Kavala"]
[Date "2022.07.29"]
[Round "5.11"]
[White "Gopal G.N."]
[Black "Mixakis, Evangelos"]
[Result "1-0"]
[ECO "B04"]
[WhiteElo "2593"]
[BlackElo "1883"]
[Annotator "TA"]
[PlyCount "93"]
[EventDate "2022.07.27"]
[EventType "swiss"]
[EventCountry "GRE"]
[SourceTitle "playchess.com"]
[Source "ChessBase"]
[SourceQuality "1"]
[TimeControl "40/5400+30:1800+30"]

{[%evp 10,93,43,36,45,41,29,14,39,27,25,26,28,28,32,19,37,39,37,24,31,37,47,39,79,25,26,25,23,21,38,24,25,31,68,63,64,50,112,56,47,38,107,96,103,83,54,75,370,358,1104,472,466,471,497,508,707,706,700,601,629,643,884,356,566,519,608,556,708,543,1039,551,545,546,553,528,564,551,688,681,931,899,5197,481,4794,1829]} 1. e4 {[%emt 0:00:03]} Nf6 {[%emt 0:00:08]} 2. e5 {[%emt 0:00:09]} Nd5 {[%emt 0:00:13]} 3. d4 {[%emt 0:00:19]} d6 {[%emt 0:00:10]} 4. Nf3 {[%emt 0:00:22]} dxe5 {[%emt 0:00:14]} 5. Nxe5 {[%emt 0:01:00]} c6 {[%emt 0:00:24]} 6. Be2 {[%emt 0:04:59]} Bf5 {[%emt 0:00:37] B04: Alekhine's Defence: 4 Nf3.} 7. O-O {[%emt 0:02:03]} Nd7 {[%emt 0:00:10]} 8. Nf3 {[%emt 0:01:54]} h6 {[%emt 0:00:48] The position is equal.} 9. Bd3 $5 {[%emt 0:14:47][%mdl 4] A promising side line.} Bxd3 {[%emt 0:02:30]} 10. Qxd3 {[%emt 0:00:01]} e6 {[%emt 0:00:26]} 11. c4 {[%emt 0:00:06]} N5f6 {[%emt 0:08:32]} 12. Nc3 {[%emt 0:00:09]} Be7 {[%emt 0:01:05]} 13. Bf4 {[%emt 0:10:30]} O-O {[%emt 0:00:27]} 14. Rad1 {[%emt 0:00:27] [#]} Qa5 $146 {[%emt 0:06:45]} ({Predecessor:} 14... Qb6 15. b3 Rfd8 16. h3 Bb4 17. Qc2 Bxc3 18. Qxc3 c5 19. Rfe1 cxd4 20. Rxd4 Rac8 {½-½ (63) Ramesh,R (2484)-Cox,J (2314) Port Erin 2004}) 15. a3 {[%emt 0:02:23]} Nh5 {[%emt 0:04:47]} 16. Bc1 {[%emt 0:02:22]} Bd6 {[%emt 0:04:37]} 17. g3 {[%emt 0:09:11]} (17. d5 $16 exd5 18. cxd5) 17... Nhf6 $11 {[%emt 0:01:20]} 18. Rfe1 {[%emt 0:00:48]} Rfe8 {[%emt 0:14:29]} 19. Kg2 {[%emt 0:03:25]} Rac8 {[%emt 0:03:02]} 20. h3 {[%emt 0:03:42]} Qa6 {[%emt 0:10:32]} 21. Ne5 {[%emt 0:06:49]} b6 {[%emt 0:02:53]} 22. Qf3 {[%emt 0:07:22]} Qb7 {[%emt 0:02:35]} 23. Bf4 {[%emt 0:01:23]} (23. b4 $5 {[%cal Rb4b5]}) 23... Bf8 {[%emt 0:01:55]} (23... Bb8 $14) 24. Rd3 {[%emt 0:03:55]} (24. h4 $16) 24... a6 $14 {[%emt 0:00:29]} 25. a4 {[%emt 0:07:41]} Qa8 {[%emt 0:05:57]} ({Better is} 25... Red8 $14) 26. Ne4 $1 $16 {[%emt 0:08:12]} c5 {[%emt 0:02:29]} 27. Nxd7 {[%emt 0:00:15] 0x0.00144b3f0a92dp-1022s more active pieces.} Nxd7 {[%emt 0:00:30]} 28. d5 {[%emt 0:00:09]} e5 {[%emt 0:03:44][%mdl 8192] A mistake that costs the game.} (28... exd5 $16 29. Rxd5 Qc6) 29. Bxh6 $18 {[%emt 0:00:34]} Qb7 $2 {[%emt 0:04:23] [#]} (29... Rc7 30. Bg5 b5) 30. Bd2 {[%emt 0:00:29]} (30. Bxg7 $142 $1 {[%mdl 512]} Kxg7 (30... Bxg7 31. Nd6) 31. Qg4+ Kh7 32. Rf3) 30... b5 {[%emt 0:00:37]} 31. b3 {[%emt 0:00:12]} ({Stronger than} 31. Ng5 f6 $11) 31... Qb6 {[%emt 0:02:14]} 32. h4 {[%emt 0:01:23]} ({Weaker is} 32. axb5 Qg6 33. g4 (33. bxa6 f5 $16) 33... axb5 $18) 32... g6 {[%emt 0:06:46]} 33. g4 {[%emt 0:01:12] Against f5} Bg7 {[%emt 0:01:05]} 34. g5 {[%emt 0:00:38]} f5 {[%emt 0:01:50]} 35. gxf6 $1 {[%emt 0:00:05]} Nxf6 {[%emt 0:00:44] [#]} 36. Nxf6+ {[%emt 0:01:35]} (36. Ba5 $142 $1 {[%mdl 512]} Qxa5 37. Nxf6+ Kh8 38. Nxe8 Rxe8 39. Qe4 bxc4 40. Rg3) 36... Bxf6 {[%emt 0:00:58]} (36... Qxf6 $142 37. axb5 axb5) 37. Qg4 {[%emt 0:00:24] White is clearly winning.} Bg7 {[%emt 0:01:49]} 38. Rg3 {[%emt 0:01:04][%cal Bd3g3,Bg3g6,Bg6c6,Bc6h6][%mdl 32]} bxa4 {[%emt 0:02:53]} 39. bxa4 {[%emt 0:00:09] aiming for h5.} Rb8 {[%emt 0:00:57]} 40. Qxg6 {[%emt 0:00:00]} Qxg6 {[%emt 0:00:00]} 41. Rxg6 {[%emt 0:05:02]} Kh7 {[%emt 0:02:04]} 42. Rc6 {[%emt 0:06:40]} Rb2 {[%emt 0:00:57]} 43. Be3 {[%emt 0:01:49]} Ra2 {[%emt 0:00:42]} 44. Rb1 {[%emt 0:05:17]} Rxa4 {[%emt 0:01:23]} 45. Rb7 {[%emt 0:00:26] White threatens Rh6+ and mate.} Rxc4 {[%emt 0:00:50]} 46. Rh6+ {[%emt 0:00:31]} Kg8 {[%emt 0:00:17]} 47. Rg6 {[%emt 0:00:01] Weighted Error Value: White=0.41/Black=0.46} 1-0

[Event "31st Kavala Open-A 2022"]
[Site "Kavala"]
[Date "2022.07.29"]
[Round "5.12"]
[White "Maltsevskaya, Aleksandra"]
[Black "Ortega Lopez, Mikel"]
[Result "1/2-1/2"]
[ECO "B30"]
[WhiteElo "2378"]
[BlackElo "2249"]
[Annotator "TA"]
[PlyCount "80"]
[EventDate "2022.07.27"]
[EventType "swiss"]
[EventCountry "GRE"]
[SourceTitle "playchess.com"]
[Source "ChessBase"]
[SourceQuality "1"]
[TimeControl "40/5400+30:1800+30"]

{[%evp 9,80,39,45,45,33,39,38,28,38,36,50,36,37,39,36,30,56,35,53,61,49,77,22,0,10,9,18,0,0,0,104,100,187,157,400,395,547,518,514,527,484,479,666,654,915,195,154,0,0,0,0,0,0,0,0,0,86,104,98,0,0,0,108,0,0,0,0,0,0,0,0,0,49]} 1. e4 {[%emt 0:03:55]} c5 {[%emt 0:02:26]} 2. Nf3 {[%emt 0:00:03]} Nc6 {[%emt 0:00:11]} 3. Bb5 {[%emt 0:00:09]} e5 {[%emt 0:01:08]} 4. O-O {[%emt 0:01:07]} Bd6 {[%emt 0:00:24]} 5. c3 {[%emt 0:02:53]} Nge7 {[%emt 0:00:25]} 6. d4 {[%emt 0:01:04] B30: Sicilian: 2...Nc6 3 Bb5, lines without ...g6.} cxd4 {[%emt 0:01:10]} 7. cxd4 {[%emt 0:01:16]} exd4 {[%emt 0:02:15]} 8. Nxd4 {[%emt 0:02:28] White is slightly better.} O-O {[%emt 0:00:21]} 9. Nc3 {[%emt 0:00:46]} Be5 {[%emt 0:01:23]} 10. Nf3 {[%emt 0:00:29]} Bxc3 {[%emt 0:00:29]} 11. bxc3 {[%emt 0:00:06]} d5 {[%emt 0:00:05]} 12. Ba3 {[%emt 0:09:59] [#]} Qa5 $146 {[%emt 0:27:57]} ({Predecessor:} 12... dxe4 13. Ng5 Qa5 14. Qb3 a6 15. Bxc6 Nxc6 16. Bxf8 Qxg5 17. Bd6 h5 18. Rae1 Qg6 {1-0 (56) Maghsoodloo,P (2695)-Nogerbek,K (2356) Chess.com INT 2021}) 13. Qb3 {[%emt 0:03:42]} Rd8 {[%emt 0:00:34]} 14. Rad1 {[%emt 0:12:50] Bxc6 is the strong threat.} (14. Rfe1 {with more complications.} h6 15. Nd4 Nxd4 16. cxd4 Nc6 17. Bxc6 bxc6 18. e5) 14... Bg4 {[%emt 0:05:32]} 15. Bxc6 {[%emt 0:03:39]} Nxc6 {[%emt 0:00:24]} 16. Rxd5 {[%emt 0:02:37]} (16. exd5 {seems wilder.} Bxf3 17. gxf3 Ne5 18. f4) 16... Rxd5 {[%emt 0:00:22]} 17. exd5 {[%emt 0:00:05][%cal Be4d5,Bd5d6,Bd6d7][%mdl 32]} Bxf3 {[%emt 0:00:07]} 18. gxf3 {[%emt 0:00:05][%cal Bg2f3,Bf3f4][%mdl 32]} Ne5 {[%emt 0:00:23]} 19. Qxb7 {[%emt 0:22:35]} Re8 {[%emt 0:04:28]} (19... Rd8 $11 20. Be7 Qxd5 21. Qxd5 Rxd5) 20. Be7 $1 $16 {[%emt 0:12:34] Hoping for d6.} Qxc3 {[%emt 0:07:40]} (20... Ng6 $16 {was worth a try.}) 21. d6 $1 $18 {[%emt 0:00:06]} Qd3 $2 {[%emt 0:00:30]} (21... Nxf3+ $2 22. Kg2 Ne5 23. d7 Nxd7 24. Qxd7 $18) (21... Qc6 $16 {was necessary.} 22. Qxc6 (22. Qxa7 $2 Nxf3+ 23. Kh1 Nd2+ 24. f3 Nxf1 $19) 22... Nxc6) 22. f4 {[%emt 0:02:59]} Qg6+ {[%emt 0:14:48]} 23. Kh1 {[%emt 0:01:48]} Qd3 {[%emt 0:00:27][%cal Rd3f1]} 24. Re1 {[%emt 0:04:49]} Ng6 {[%emt 0:02:27]} 25. Qc6 {[%emt 0:01:58]} ({Not} 25. d7 Rxe7 26. Qa8+ Nf8 $11) 25... Rb8 {[%emt 0:01:04]} 26. d7 {[%emt 0:00:18] Threatens to win with Qc8+.} Qd2 {[%emt 0:02:42] [#]} 27. Qc8+ $2 {[%emt 0:04:05]} (27. Bb4 $1 {[%mdl 512]} Qxb4 28. Re8+ Nf8 29. Qd5) 27... Nf8 {[%emt 0:00:01] [#]} 28. Qxb8 $2 {[%emt 0:04:05] White is much more active.} (28. Ra1 $1 $16 Qxd7 29. Qxb8 Qxe7 30. Qe5 Qb7+ 31. Kg1) 28... Qxe1+ $16 {[%emt 0:00:09][%mdl 4096] Endgame KQB-KQN} 29. Kg2 {[%emt 0:00:03][%csl Ge7][%cal Rb8f8]} Qe4+ {[%emt 0:00:03]} 30. f3 {[%emt 0:02:04][%csl Ge7][%cal Rb8f8]} Qe2+ {[%emt 0:00:18]} 31. Kg3 {[%emt 0:00:12][%csl Ge7][%cal Rb8f8] Really sharp!} Qe1+ {[%emt 0:00:13]} 32. Kh3 {[%emt 0:01:00][%csl Ge7][%cal Rb8f8]} Qe6+ {[%emt 0:08:55] [#]} (32... Qf1+ $11 {remains equal.} 33. Kh4 Qf2+ 34. Kg4 Qg2+ 35. Kh4 Qf2+ 36. Kg4 Qg2+ 37. Kh4 Qf2+) 33. f5 $1 {[%emt 0:00:34]} Qxf5+ {[%emt 0:00:02]} 34. Kg2 {[%emt 0:00:33]} (34. Kh4 $16 {[%csl Ge7][%cal Rb8f8]} g5+ 35. Kg3 (35. Kh5 Qh3+ 36. Kxg5 h6+ 37. Kf4 Qxh2+ 38. Kf5 Qxb8 $15) 35... Qf4+ 36. Qxf4 gxf4+ 37. Kxf4 Nxd7 38. Kf5) 34... Qc2+ $11 {[%emt 0:00:29]} 35. Kh3 {[%emt 0:00:31]} (35. Kf1 $11 Qd1+ 36. Kg2 Qd2+ 37. Kh1 (37. Kg3 Qe1+ 38. Kh3 Qf1+ 39. Kg3 Qe1+ 40. Kh3 Qf1+ 41. Kg3 Qe1+ $11) 37... Qd1+ 38. Kg2 Qd2+ 39. Kh1 (39. Kg3 Qe1+ 40. Kh3 Qf1+ 41. Kg3 Qe1+ 42. Kh3 Qf1+ 43. Kg3 Qe1+ $11) 39... Qd1+ 40. Kg2) 35... Qf5+ $16 {[%emt 0:00:07]} 36. Kg2 {[%emt 0:00:25]} ({Only move:} 36. Kh4 $16 {[%csl Ge7][%cal Rb8f8]} g5+ 37. Kg3 (37. Kh5 Qh3+ 38. Kxg5 h6+ 39. Kf4 Qxh2+ 40. Kf5 Qxb8 $15) 37... Qf4+ 38. Qxf4 gxf4+ 39. Kxf4 Nxd7 40. Kf5) 36... Qc2+ $11 {[%emt 0:00:04] The position is equal.} 37. Kg3 {[%emt 0:00:36][%csl Ge7][%cal Rb8f8]} Qg6+ {[%emt 0:00:02]} 38. Kf4 {[%emt 0:00:31][%csl Ge7][%cal Rb8f8]} Qh6+ {[%emt 0:00:01]} 39. Kg3 {[%emt 0:00:27][%csl Ge7][%cal Rb8f8]} Qg6+ {[%emt 0:00:01]} 40. Kh3 {[%emt 0:00:00]} (40. Kf2 $11 {was preferrable.} Qc2+ 41. Kg1 (41. Kg3 Qg6+ $11) 41... Qd1+ 42. Kg2 Qd2+ 43. Kh1 (43. Kg3 Qe1+ 44. Kg4 Qg1+ 45. Kh5 Qg6+ 46. Kh4 Qh6+ 47. Kg3 Qg6+ $11) 43... Qd1+ 44. Kg2 Qd2+ 45. Kh1 (45. Kg3 Qe1+ 46. Kg4 Qg1+ 47. Kh5 Qg6+ 48. Kh4 Qh6+ 49. Kg4 Qe6+ 50. Kg3 Qg6+ $11) 45... Qd1+ 46. Kg2) 40... Qf5+ {[%emt 0:00:41] Black defended with fortune.  Weighted Error Value: White=0.21 (precise) /Black=0.43} 1/2-1/2

[Event "31st Kavala Open-A 2022"]
[Site "Kavala"]
[Date "2022.07.29"]
[Round "5.13"]
[White "Stefanou, Dimitrios"]
[Black "Spyratos, Nikolaos"]
[Result "1-0"]
[ECO "A13"]
[WhiteElo "2184"]
[BlackElo "2268"]
[Annotator "TA"]
[PlyCount "77"]
[EventDate "2022.07.27"]
[EventType "swiss"]
[EventCountry "GRE"]
[SourceTitle "playchess.com"]
[Source "ChessBase"]
[SourceQuality "1"]
[TimeControl "40/5400+30:1800+30"]

{[%evp 15,77,41,51,43,42,41,45,47,43,57,44,38,38,16,58,58,68,53,63,35,66,60,67,56,68,71,56,65,61,61,111,48,128,115,143,150,150,133,144,104,110,89,110,101,370,354,325,329,605,602,602,592,567,559,578,570,741,800,720,514,1444,462,1420,1395]} 1. Nf3 {[%emt 0:00:06]} Nf6 {[%emt 0:00:10]} 2. c4 {[%emt 0:00:12]} e6 {[%emt 0:00:07]} 3. g3 {[%emt 0:00:11]} a6 {[%emt 0:03:54]} 4. Bg2 {[%emt 0:00:12]} b5 {[%emt 0:00:06]} 5. b3 {[%emt 0:00:15]} Bb7 {[%emt 0:00:06]} 6. O-O {[%emt 0:00:15]} c5 {[%emt 0:01:31]} 7. Nc3 {[%emt 0:00:20]} Qb6 {[%emt 0:02:36]} 8. e3 {[%emt 0:00:33]} Be7 {[%emt 0:04:20]} 9. d4 {[%emt 0:00:24] A13: English Opening: 1...e6.} d6 {[%emt 0:02:26]} 10. d5 {[%emt 0:02:55]} exd5 {[%emt 0:12:07]} 11. cxd5 {[%emt 0:00:30] White is slightly better.} O-O {[%emt 0:02:44]} 12. e4 {[%emt 0:00:36]} Nbd7 {[%emt 0:02:00]} 13. h3 {[%emt 0:01:18]} Rfe8 {[%emt 0:03:22] [#]} 14. Bb2 $146 {[%emt 0:02:47]} ({Predecessor:} 14. Be3 Bf8 15. Nd2 g6 16. a4 Bg7 17. Qc2 Rab8 18. Rfc1 Nh5 19. axb5 axb5 20. g4 {1-0 (36) Banusz,T (2585)-Goganov,A (2604) Riga 2014}) 14... Bf8 {[%emt 0:03:04]} 15. Qc2 {[%emt 0:02:42]} g6 {[%emt 0:04:35]} 16. Nd2 {[%emt 0:02:01]} Bg7 {[%emt 0:01:09]} 17. Kh2 {[%emt 0:02:37]} Rac8 {[%emt 0:05:37]} 18. f4 {[%emt 0:07:56]} Qc7 {[%emt 0:05:30]} 19. a4 {[%emt 0:23:58]} b4 {[%emt 0:03:17]} 20. Nd1 {[%emt 0:02:31]} a5 {[%emt 0:02:24]} 21. Ne3 {[%emt 0:05:12] aiming for Ndc4.} Nb6 {[%emt 0:04:01]} 22. Rfe1 {[%emt 0:02:41]} Nfd7 {[%emt 0:07:40]} (22... Ba6 $14) 23. Bf1 {[%emt 0:05:48]} ({White should play} 23. Bxg7 $16 Kxg7 24. Bf1) 23... Ra8 {[%emt 0:08:11]} (23... Bd4 $14) 24. Rad1 {[%emt 0:02:51]} Ba6 {[%emt 0:01:17]} 25. Bxg7 {[%emt 0:05:04]} Kxg7 {[%emt 0:00:25]} 26. Bxa6 {[%emt 0:00:17]} Rxa6 {[%emt 0:00:02]} 27. Qb2+ {[%emt 0:03:18]} f6 {[%emt 0:00:19]} 28. g4 {[%emt 0:01:44][%cal Bg3g4,Bg4g5][%mdl 32]} Qd8 {[%emt 0:04:00]} 29. g5 {[%emt 0:06:36] White is more active.} c4 $2 {[%emt 0:04:11][%mdl 8192] [#] This costs Black the game.} (29... Kg8 $16 {was worth a try.}) 30. Nexc4 {[%emt 0:02:43]} Nxc4 {[%emt 0:00:43]} 31. Nxc4 {[%emt 0:00:26]} Nc5 $2 {[%emt 0:00:08]} (31... Kg8 32. gxf6 Nxf6) 32. gxf6+ $18 {[%emt 0:02:36] White is clearly winning.} Qxf6 {[%emt 0:00:09]} 33. Qxf6+ {[%emt 0:00:14]} Kxf6 {[%emt 0:00:01] [#]} 34. Nxd6 {[%emt 0:01:22][%mdl 512]} Rxd6 {[%emt 0:01:26]} 35. e5+ {[%emt 0:00:06]} Kf5 {[%emt 0:00:16] ...Rd7 is the strong threat.} 36. exd6 {[%emt 0:00:11]} Rd8 {[%emt 0:00:01]} 37. Rd4 {[%emt 0:02:41]} Rxd6 {[%emt 0:01:55]} (37... g5 $142 38. Re5+ Kf6) 38. Re5+ {[%emt 0:01:18]} Kf6 {[%emt 0:00:01]} 39. Rc4 {[%emt 0:00:20] Weighted Error Value: White=0.16 (very precise) /Black=0.45} 1-0

[Event "31st Kavala Open-A 2022"]
[Site "Kavala"]
[Date "2022.07.29"]
[Round "5.14"]
[White "Zawadzka, Jolanta"]
[Black "Tsarsitalidis, Christos"]
[Result "1-0"]
[ECO "B18"]
[WhiteElo "2416"]
[BlackElo "1896"]
[Annotator "TA"]
[PlyCount "145"]
[EventDate "2022.07.27"]
[EventType "swiss"]
[EventCountry "GRE"]
[SourceTitle "playchess.com"]
[Source "ChessBase"]
[SourceQuality "1"]
[TimeControl "40/5400+30:1800+30"]

{[%evp 13,145,33,23,25,21,19,24,18,41,-78,-16,-38,-39,-61,-29,-66,-63,-61,-27,-40,-24,-25,-11,-29,0,0,0,-43,-37,-43,34,-80,-37,-27,-10,-10,-6,-76,-20,-6,0,0,0,-35,0,-18,0,0,0,-32,-37,-81,-58,-114,-112,-109,-102,-81,-35,-27,0,0,0,0,0,0,5,0,2,8,10,13,74,68,97,83,95,95,94,46,94,94,94,72,68,53,94,94,133,125,134,94,139,95,102,51,63,0,102,95,108,64,64,64,93,67,74,74,285,274,601,601,591,339,615,594,597,602,583,575,548,536,653,646,596,489,850,845,794,770,5058,4906,2666,1951]} 1. e4 {[%emt 0:00:08]} c6 {[%emt 0:00:05]} 2. d4 {[%emt 0:00:08]} d5 {[%emt 0:00:07]} 3. Nd2 {[%emt 0:00:05]} dxe4 {[%emt 0:00:03]} 4. Nxe4 {[%emt 0:00:05]} Bf5 {[%emt 0:00:08]} 5. Ng3 {[%emt 0:00:07]} Bg6 {[%emt 0:00:54]} 6. Nh3 e6 {[%emt 0:00:23] 6...Nf6 gains popularity.} 7. Nf4 {[%emt 0:01:10]} Bd6 {[%emt 0:00:00]} 8. Ngh5 {[%emt 0:00:51] B18: Classical Caro-Kann: 4...Bf5 sidelines.} Kf8 {[%emt 0:07:45]} 9. Qf3 {[%emt 0:19:03]} Nf6 {[%emt 0:01:13]} 10. Nxg6+ {[%emt 0:00:15] White has an edge.} hxg6 {[%emt 0:00:07] [#]} 11. Nf4 $146 {[%emt 0:01:29]} (11. Nxf6 $14 gxf6 12. Be3) ({Predecessor:} 11. Nxf6 Qxf6 12. Qb3 b6 13. Be3 Bf4 14. O-O-O Bxe3+ 15. fxe3 Nd7 16. Bc4 b5 17. Bd3 {1-0 (43) Kowalczyk,R (2235)-Kjartansson,G (2460) Katowice 2021}) 11... g5 {[%emt 0:10:31]} ({Better is} 11... Nbd7 $17 {White must now prevent ...e5.} 12. Be2 e5 13. dxe5 Nxe5) 12. Ne2 $11 {[%emt 0:03:33]} g4 {[%emt 0:01:08]} 13. Qd3 {[%emt 0:13:01]} Qc7 {[%emt 0:01:45]} (13... Rxh2 14. Rxh2 Bxh2 15. g3 $14) 14. Bd2 {[%emt 0:06:54]} Nbd7 {[%emt 0:03:55]} 15. O-O-O {[%emt 0:02:08]} b5 {[%emt 0:06:29]} (15... Rxh2 $2 16. Rxh2 Bxh2 17. g3 $18) 16. Nc3 {[%emt 0:00:00]} a5 {[%emt 0:17:06]} (16... Rxh2 17. Rxh2 Bxh2 18. g3 $16) 17. g3 {[%emt 0:00:00]} b4 {[%emt 0:08:44]} 18. Na4 {[%emt 0:00:08]} Nb6 {[%emt 0:00:14]} 19. Nxb6 {[%emt 0:00:41]} Qxb6 {[%emt 0:00:05]} 20. Be2 {[%emt 0:00:16]} a4 {[%emt 0:01:41]} 21. Kb1 {[%emt 0:02:39]} Ke7 {[%emt 0:14:30]} (21... Ra5 $15) 22. Rde1 {[%emt 0:03:39]} (22. Bg5 $14 {keeps the upper hand.}) 22... Rhb8 {[%emt 0:10:16]} 23. Bd1 {[%emt 0:00:10]} Qb5 {[%emt 0:01:44]} (23... Nd5 {with more complications.} 24. h3 Nc3+ 25. Ka1 Nxd1 26. Rxd1 gxh3 27. Rxh3 Qb5) 24. Qxb5 {[%emt 0:00:43]} Rxb5 {[%emt 0:04:32]} 25. h4 {[%emt 0:00:33]} (25. f3 $11) 25... gxh3 {[%emt 0:00:23]} (25... a3 $17 26. b3 Rd5) 26. Rxh3 {[%emt 0:04:01]} c5 {[%emt 0:06:34]} 27. Be2 {[%emt 0:17:56]} Rbb8 {[%emt 0:03:15][%cal Bb5b8,Bb8c8,Bc8c3][%mdl 32]} 28. Be3 {[%emt 0:01:52]} Rc8 {[%emt 0:01:00]} 29. Rh4 {[%emt 0:01:09]} c4 {[%emt 0:02:08]} 30. Bg5 {[%emt 0:00:45][%cal Od4d5]} Ra5 {[%emt 0:01:22]} 31. f4 {[%emt 0:00:38]} (31. Rh5 $5 {[%cal Rg5f6]} Bc7 32. c3 $11 (32. Bxc4 Kd7 $17)) 31... c3 {[%emt 0:06:25]} 32. Bd3 {[%emt 0:01:25][%cal Oe1e5]} b3 {[%emt 0:03:12]} 33. bxc3 {[%emt 0:04:07]} (33. Rhh1 $15) 33... Rxc3 $17 {[%emt 0:01:34]} 34. Re5 {[%emt 0:01:08]} bxc2+ {[%emt 0:00:13]} 35. Bxc2 {[%emt 0:03:08]} Bxe5 {[%emt 0:03:33]} (35... Ra7 $17 {And now ...Rb7+ would win.} 36. Rb5 Rxg3) 36. fxe5 $15 {[%emt 0:00:23][%mdl 64] [#] Pin} Kd7 {[%emt 0:00:00]} 37. Bd2 $1 {[%emt 0:07:37]} Rb5+ {[%emt 0:00:00]} 38. Kc1 {[%emt 0:00:09]} Rxc2+ {[%emt 0:00:00]} 39. Kxc2 $11 {[%emt 0:00:05][%mdl 4096] Endgame KRB-KRN} Ne8 {[%emt 0:01:07]} 40. Rh8 {[%emt 0:00:00]} f6 {[%emt 0:02:59]} 41. exf6 {[%emt 0:03:07]} Nxf6 {[%emt 0:00:00]} 42. Ra8 {[%emt 0:01:14]} Ne4 {[%emt 0:01:49] [#]} (42... Rf5 $11 {keeps the balance.}) 43. Bf4 $1 $16 {[%emt 0:11:11]} ({But not} 43. Rxa4 Nxg3 44. Bc3 (44. Ra7+ Kc6 $11) 44... g5 $11) 43... Rb4 {[%emt 0:00:12]} 44. Kd3 {[%emt 0:00:39]} Nf6 {[%emt 0:00:00]} 45. Ra7+ {[%emt 0:00:00]} Kc6 {[%emt 0:00:00]} 46. Bd2 {[%emt 0:00:00] White is more active.} (46. Rxg7 $16 {Hoping for Rg6.} Rb2 47. Rc7+ Kb6 48. Re7) 46... Rb7 {[%emt 0:00:00]} (46... Rb2 $14 {is superior.}) 47. Rxa4 {[%emt 0:00:00]} Nd5 {[%emt 0:01:37]} 48. Ra6+ {[%emt 0:00:00]} Kd7 {[%emt 0:00:12]} 49. Ra8 {[%emt 0:00:00]} Ke7 {[%emt 0:02:59]} 50. g4 {[%emt 0:01:01][%cal Bg3g4,Bg4g5][%mdl 32]} Nc7 {[%emt 0:02:58]} 51. Ra5 {[%emt 0:01:22]} Nd5 {[%emt 0:00:58]} 52. g5 {[%emt 0:00:51]} Kf7 {[%emt 0:00:00]} 53. Ra8 {[%emt 0:08:19]} Nc7 {[%emt 0:00:00]} 54. Rc8 {[%emt 0:00:19]} (54. Ra4 $16) 54... Nd5 $14 {[%emt 0:00:00]} 55. Ra8 {[%emt 0:04:54]} Nc7 $1 {[%emt 0:00:04]} 56. Ra3 {[%emt 0:00:13]} Nd5 {[%emt 0:00:14]} 57. Rb3 {[%emt 0:00:11]} Ra7 {[%emt 0:01:05]} 58. a3 {[%emt 0:00:04]} Ra4 {[%emt 0:02:20]} 59. Ke4 {[%emt 0:00:16]} Kg6 {[%emt 0:01:29]} 60. Ke5 {[%emt 0:01:01]} Ne7 $2 {[%emt 0:03:46] This move loses the game for Black.} (60... Ra6 $16 {was worth a try.}) 61. Rb6 $18 {[%emt 0:01:51]} (61. Kxe6 Rxd4 62. Bc1 (62. Kxe7 Rxd2 63. Rb5 Ra2 $16) 62... Re4+ 63. Kd7 Nd5 $16) 61... Kf7 $2 {[%emt 0:02:16]} (61... Kh5 62. Bb4 (62. Rxe6 Ng6+ 63. Ke4 Rxa3 $16) (62. Kxe6 Rxd4 63. Kxe7 Rxd2 $16) 62... Nd5) 62. Rb7 {[%emt 0:00:22]} Ke8 {[%emt 0:00:52]} 63. Kxe6 {[%emt 0:03:03] Intending Rb8+ and mate.} Ra6+ $2 {[%emt 0:00:09]} (63... Nc6) 64. Ke5 {[%emt 0:00:35] Threatens to win with Bb4. White is clearly winning.} Nc6+ {[%emt 0:00:00]} 65. Kd5 {[%emt 0:00:06]} Ne7+ {[%emt 0:00:00]} 66. Ke4 Re6+ {[%emt 0:00:47]} 67. Kd3 {[%emt 0:00:35]} Nf5 {[%emt 0:00:00]} 68. a4 {[%emt 0:01:22][%cal Ba3a4,Ba4a5,Ba5b6][%mdl 32]} Rd6 {[%emt 0:00:00]} 69. Bc3 {[%emt 0:00:28]} Rg6 {[%emt 0:00:00]} (69... Rd7 $142) 70. a5 {[%emt 0:03:54]} Ne7 {[%emt 0:00:32]} 71. Bd2 {[%emt 0:00:32]} Kd8 {[%emt 0:00:47]} 72. Rb6 {[%emt 0:00:12]} Rxb6 {[%emt 0:00:06]} 73. axb6 {[%emt 0:00:26] Weighted Error Value: White=0.22 (precise) /Black=0.27 (precise)} 1-0